Cogmind - Beta 12 *** ADVENTURER MODE // 2023.12.03 @ 21:34:02 Player: Ty Piggbottom Result: Self-destructed Performance ------------- Evolutions (2) 1000 Regions Visited (5) 1000 Robots Destroyed (67) 335 Value Destroyed (1293) 1293 Prototype IDs (5) 100 Alien Tech Used (0) 0 Bonus (-97) -97 TOTAL SCORE: 3631 Bonus ------- Friendly Fire -97 Cogmind --------- Core Integrity 487/550 Matter 240/300 Energy 61/265 System Corruption 0% Temperature Cool (24) Movement Core (500) Ox9 Location -8/Materials Parts ------- > --- POWER (1) -------- Improved Ion Engine > --- PROPULSION (3) --- (None) > --- UTILITY (5) ------ Improved Heat Sink Large Storage Unit Improved Sensor Array Improved Signal Interpreter > --- WEAPON (2) ------- (None) > --- INVENTORY (15) --- Light Deuterium Engine Light Nuclear Core Light Nuclear Core Improved Hover Unit Cesium-ion Thruster Improved VTOL Module Improved VTOL Module Improved VTOL Module Improved Cooling System Improved Light Armor Plating Shield Generator Shock Rifle Medium Laser Beam Rifle Makeshift Hammer Peak State ------------ > --- POWER ------------ Light Nuclear Core > --- PROPULSION ------- Aluminum Leg Improved Aluminum Leg Makeshift Leg > --- UTILITY ---------- Improved Heat Sink Large Storage Unit Improved Sensor Array Improved Signal Interpreter Medium Armor Plating > --- WEAPON ----------- Particle Gun Precision Beam Rifle > --- INVENTORY -------- Light Nuclear Core Light Angular Momentum Engine Aluminum Leg Improved Heat Sink Improved Cooling System Medium Laser Beam Rifle Particle Gun Grenade Launcher Rocket Launcher Makeshift Hammer EMP Trap EMP Trap EMP Trap EMP Trap [Rating: 31] Favorites ----------- Power Light Angular Momentum Engine Engine Light Angular Momentum Engine Power Core Light Nuclear Core Propulsion Aluminum Leg Leg Aluminum Leg Hover Unit Hover Unit Flight Unit Improved VTOL Module Utility Small Storage Unit Device Shield Generator Storage Small Storage Unit Processor Signal Interpreter Protection Weapon Shielding Weapon Assault Rifle Energy Gun Medium Laser Ballistic Gun Assault Rifle Ballistic Cannon Light Cannon Launcher Grenade Launcher Build | -11 -10 -10 -10 -9 -8 ------- Run | Jun Mat Min Exi Min Mat Slots Evolved 4 | . . . . . 4 Power . | . . . . . . Propulsion 1 | . . . . . 1 Utility 3 | . . . . . 3 Weapon . | . . . . . . Parts Attached 144 | 10 37 16 11 18 52 Power 26 | 1 11 4 . 1 9 Engine 12 | 1 6 2 . . 3 Core 14 | . 5 2 . 1 6 Reactor . | . . . . . . Propulsion 16 | 2 2 4 . 1 7 Treads . | . . . . . . Leg 11 | 2 . 3 . 1 5 Wheel . | . . . . . . Hover 3 | . 2 1 . . . Flight 2 | . . . . . 2 Utility 45 | 5 8 1 11 7 13 Device 18 | 4 2 . 1 3 8 Storage 17 | 1 4 . 9 1 2 Processor 3 | . 2 . . . 1 Hackware . | . . . . . . Protection 7 | . . 1 1 3 2 Artifact . | . . . . . . Weapon 57 | 2 16 7 . 9 23 Energy Gun 19 | 1 . 1 . 2 15 Energy Cannon . | . . . . . . Ballistic Gun 20 | 1 11 2 . 4 2 Ballistic Cannon 5 | . 2 1 . . 2 Launcher 13 | . 3 3 . 3 4 Special Weapon . | . . . . . . Impact Weapon . | . . . . . . Slashing Weapon . | . . . . . . Piercing Weapon . | . . . . . . Special Melee Weapon . | . . . . . . Unidentified Prototypes 2 | . . . . . 2 Parts Lost 7 | . . 1 . . 6 Power . | . . . . . . Propulsion 5 | . . 1 . . 4 Utility 1 | . . . . . 1 Weapon 1 | . . . . . 1 Highest Loss Streak 5 | . . 1 . . 5 To Critical Strikes . | . . . . . . Average Slot Usage (%) 98 | . 98 99 99 99 97 Engine 8 | . 10 11 14 6 2 Core 4 | . 3 2 . 7 6 Leg 22 | . 7 22 28 28 26 Hover 5 | . 20 5 . . . Device 7 | . 7 . . 7 22 Storage 13 | . 12 14 18 14 9 Processor 4 | . 7 6 . . 7 Protection 5 | . . 7 9 6 3 Energy Gun 9 | . 1 7 14 14 13 Ballistic Gun 11 | . 24 12 14 7 . Launcher 3 | . . 7 . 6 3 Naked Turns . | . . . . . . Heaviest Build 55 | 12 19 20 55 36 43 Greatest Support 43 | 20 20 30 30 33 43 Greatest Overweight (x) 3 | . 1 3 1 1 1 Average Overweight (x) . | . . . . . . Largest Inventory Capacity 35 | 8 10 8 35 15 15 Average Capacity 10 | 5 7 8 8 11 15 Most Carried 15 | 5 10 8 10 15 15 Average Carried 9 | 3 7 7 7 11 14 Final Capacity 15 | 5 8 8 8 15 15 Final Carried 15 | 4 8 8 8 15 15 Class Distribution -------------------- 47% | Mutant 42% | Scavenger-Mutant 9% | Derelict-Mutant Dominant Class ---------------- Scavenger-Mutant | -10/Materials Mutant | -10/Mines Mutant | -10/Exiles Mutant | -9/Mines Scavenger-Mutant | -8/Materials Resources | -11 -10 -10 -10 -9 -8 ----------- Run | Jun Mat Min Exi Min Mat Matter Collected 2390 | 310 657 574 70 366 413 Remotely 16 | 16 . . . . . Salvage Created 2855 | 103 690 494 . 897 671 Parts 127 | 4 38 17 . 26 42 Haulers Intercepted 4 | . 2 . . . 2 Recyclers Shooed 16 | 1 4 5 . 6 . Parts Field Recycled . | . . . . . . Retrieved Matter . | . . . . . . Parts Self-Destructed . | . . . . . . Prevented . | . . . . . . Kills | -11 -10 -10 -10 -9 -8 ------- Run | Jun Mat Min Exi Min Mat Combat Hostiles Destroyed 43 | . 8 18 . 5 12 Guns 29 | . 8 7 . 4 10 Cannons 1 | . . 1 . . . AOE 13 | . . 10 . 1 2 Classes Destroyed 12 | 2 5 3 . 1 1 Worker 4 | . 1 1 . . 2 Builder 1 | . . . . . 1 Tunneler 1 | 1 . . . . . Hauler 4 | . 2 . . . 2 Recycler 17 | 1 4 2 . 10 . Watcher 5 | . 3 . . . 2 Swarmer 13 | . 6 3 . . 4 Grunt 15 | . 2 4 . 3 6 Sentry 4 | . . . . 2 2 Demolisher 2 | . . 2 . . . Zionite 1 | . . 1 . . . Assembled 9 | . . 9 . . . Best Kill Streak 9 | 1 4 9 . 3 4 Combat Bots Only 8 | . 3 8 . 3 4 Max Kills in Single Turn 4 | 1 1 4 . 1 2 Gunslinging . | . . . . . . Exploded 4 | . . 4 . 1 2 Melee . | . . . . . . Uniques/NPCs Destroyed . | . . . . . . Combat | -11 -10 -10 -10 -9 -8 -------- Run | Jun Mat Min Exi Min Mat Damage Taken 1534 | . 279 494 . 144 617 Core 282 | . 76 88 . 55 63 Absorbed by Shields 76 | . . . . 55 21 Redirected to Shielding 9 | . . 9 . . . Core Remaining (%) 56 | 100 . . . 12 . Volleys Fired 238 | 10 64 51 . 62 51 Largest 2 | 2 2 2 . 2 2 Hottest 130 | 60 60 80 . 79 130 Shots Fired 395 | 20 128 94 . 72 81 Gun 363 | 20 125 83 . 62 73 Cannon 8 | . 2 6 . . . Launcher 24 | . 1 5 . 10 8 Special . | . . . . . . Kinetic 229 | 10 124 84 . 10 1 Thermal 122 | . . 5 . 52 65 Explosive 24 | . 1 5 . 10 8 Electromagnetic 20 | 10 3 . . . 7 Robot Hit Streak 25 | 6 20 25 . 14 24 Robot Miss Streak 5 | 1 5 4 . 1 2 Penetration Max . | . . . . . . Secondary Targets 1 | . 1 . . . . Max Gunslinging Chain 1 | . 1 . . . . Shots Hit Robots 284 | 16 82 71 . 52 63 Core Hits 147 | 5 34 40 . 36 32 Critical Kills . | . . . . . . Critical Parts Destroyed . | . . . . . . Critical Strikes 8 | . . . . 5 3 Burn 8 | . . . . 5 3 Melee Attacks . | . . . . . . Impact . | . . . . . . Slashing . | . . . . . . Piercing . | . . . . . . Sneak Attacks . | . . . . . . Combat Hostiles . | . . . . . . Follow-up Attacks . | . . . . . . Damage Inflicted 4187 | 173 691 1443 . 841 1039 Guns 3214 | 173 687 803 . 670 881 Cannons 55 | . . 55 . . . Explosions 912 | . . 585 . 169 158 Melee . | . . . . . . Ramming 6 | . 4 . . 2 . Kinetic 1668 | 64 663 810 . 113 18 Thermal 1351 | . . 48 . 557 746 Explosive 912 | . . 585 . 169 158 Electromagnetic 250 | 109 24 . . . 117 Impact . | . . . . . . Slashing . | . . . . . . Piercing . | . . . . . . Highest Corruption . | . . . . . . Average Corruption . | . . . . . . Corruption Purged . | . . . . . . Corruption Blocked . | . . . . . . Overload Shots . | . . . . . . Overflow Damage 24 | . . 24 . . . Projectiles . | . . . . . . Explosions 24 | . . 24 . . . Melee . | . . . . . . Knockbacks . | . . . . . . Impact . | . . . . . . Kinetic . | . . . . . . Secondary . | . . . . . . Self-Inflicted Damage 42 | . . 38 . . 4 Shots 2 | . . 1 . . 1 Rammed . | . . . . . . Targets Rammed 2 | . 1 . . 1 . Kicked 2 | . 1 . . 1 . Crushed . | . . . . . . Highest Temperature 101 | 40 20 56 . 101 81 Average Temperature 21 | 19 9 14 . 25 25 Received Heat Transfer 559 | . 30 129 . 74 326 Siege Activations . | . . . . . . Robots Corrupted . | . . . . . . Combat Hostiles . | . . . . . . Parts Fried . | . . . . . . Impact Corruptions . | . . . . . . Robots Melted . | . . . . . . Combat Hostiles . | . . . . . . Parts Melted 11 | . . . . 1 10 Heat Transferred 4292 | . . 148 . 1998 2146 Parts Sabotaged . | . . . . . . Parts Stolen . | . . . . . . Parts Stripped . | . . . . . . Power Chain Reactions . | . . . . . . Missiles Intercepted . | . . . . . . Alert | -11 -10 -10 -10 -9 -8 ------- Run | Jun Mat Min Exi Min Mat Peak Influence 255 | 10 255 149 . 101 194 Initial 5 | . 5 5 . . 4 Average 65 | 5 82 67 . 28 109 Maximum Alert Level 1 | . 1 . . . . Low Security (%) 97 | 100 88 100 . 100 100 Level 1 2 | . 11 . . . . Level 2 . | . . . . . . Level 3 . | . . . . . . Level 4 . | . . . . . . Level 5 . | . . . . . . High Security . | . . . . . . Max Security . | . . . . . . Squads Dispatched 3 | . . . . . 3 Investigation . | . . . . . . Extermination . | . . . . . . Reinforcement . | . . . . . . Assault . | . . . . . . Garrison 3 | . . . . . 3 Intercept . | . . . . . . Searches Triggered . | . . . . . . Construction Impeded . | . . . . . . Haulers Reinforced . | . . . . . . Active Scanning Responses . | . . . . . . Cargo Convoy Interrupts . | . . . . . . Stealth | -11 -10 -10 -10 -9 -8 --------- Run | Jun Mat Min Exi Min Mat Distress Signals 2 | . 1 . . . 1 Communications Jammed . | . . . . . . Distress Signals . | . . . . . . Times Spotted 62 | . 13 24 . 5 20 Peak Tracking Total 17 | . 4 17 . 3 5 Tactical Retreats 5 | . 1 2 . . 2 Traps | -11 -10 -10 -10 -9 -8 ------- Run | Jun Mat Min Exi Min Mat Traps Triggered 3 | . 2 . . . 1 Indirectly . | . . . . . . Trap Hack Attempts . | . . . . . . Triggered . | . . . . . . Disarmed . | . . . . . . Reprogrammed . | . . . . . . Reused 1 | . . . . . 1 Traps Extracted . | . . . . . . Installed 2 | . . . . . 2 Triggered 1 | . . . . . 1 Most Traps Carried 4 | . . . . 4 4 Machines | -11 -10 -10 -10 -9 -8 ---------- Run | Jun Mat Min Exi Min Mat Machines Disabled 2 | . . . . 1 1 Max in Single Turn 1 | . . . . 1 1 Machines Repaired . | . . . . . . Machines Sabotaged . | . . . . . . Overloaded Fab Kills . | . . . . . . Hacking | -11 -10 -10 -10 -9 -8 --------- Run | Jun Mat Min Exi Min Mat Machines Accessed 17 | . 10 . 4 . 3 Terminals 11 | . 8 . . . 3 Fabricators . | . . . . . . Repair Stations . | . . . . . . Recycling Units 2 | . 2 . . . . Scanalyzers . | . . . . . . Garrison Access . | . . . . . . Total Hacks 101 | . 38 . 49 . 14 Successful 88 | . 30 . 49 . 9 Failed 13 | . 8 . . . 5 Catastrophic 2 | . 1 . . . 1 Database Lockouts . | . . . . . . Manual 29 | . 20 . . . 9 Terminals 44 | . 30 . . . 14 Fabricators . | . . . . . . Repair Stations . | . . . . . . Recycling Units 8 | . 8 . . . . Scanalyzers . | . . . . . . Garrison Access . | . . . . . . Terminal Hacks 70 | . 16 . 49 . 5 Record 52 | . 3 . 49 . . Prototype ID Bank 2 | . 2 . . . . Branch Access Points 1 | . 1 . . . . Emergency Access Points 1 | . 1 . . . . Terminal Index 2 | . 1 . . . 1 Repair Station Index 1 | . 1 . . . . Alert Level 1 | . 1 . . . . Locate Traps 5 | . 3 . . . 2 Transport Status 2 | . 2 . . . . Hauler Manifests 1 | . . . . . 1 Zone Layout 2 | . 1 . . . 1 Fabricator Hacks . | . . . . . . Repair Station Hacks . | . . . . . . Recycling Unit Hacks 3 | . 3 . . . . Report Inventory 2 | . 2 . . . . Retrieve Matter 1 | . 1 . . . . Scanalyzer . | . . . . . . Garrison Access Hacks . | . . . . . . Unauthorized Hacks 15 | . 11 . . . 4 Terminals 11 | . 7 . . . 4 Assimilate 1 | . . . . . 1 Botnet 10 | . 7 . . . 3 Fabricators . | . . . . . . Repair Stations . | . . . . . . Recycling Units 4 | . 4 . . . . Reject 2 | . 2 . . . . Mask 2 | . 2 . . . . Scanalyzers . | . . . . . . Garrison Access . | . . . . . . Data Cores Recovered . | . . . . . . Used . | . . . . . . Hacking Detections 10 | . 8 . . . 2 Full Trace Events 1 | . 1 . . . . Feedback Events . | . . . . . . Feedback Blocked . | . . . . . . Robot Schematics Acquired . | . . . . . . Robots Built . | . . . . . . Authchips . | . . . . . . Time . | . . . . . . Total Robot Build Rating . | . . . . . . Part Schematics Acquired . | . . . . . . Parts Built . | . . . . . . Authchips . | . . . . . . Time . | . . . . . . Total Part Build Rating . | . . . . . . Parts Repaired . | . . . . . . Time . | . . . . . . Parts Recycled . | . . . . . . Recycled Matter . | . . . . . . Retrieved Matter . | . . . . . . Retrieved Components . | . . . . . . Parts Scanalyzed . | . . . . . . Part Schematics Acquired . | . . . . . . Parts Damaged . | . . . . . . Bothacking | -11 -10 -10 -10 -9 -8 ------------ Run | Jun Mat Min Exi Min Mat Used RIF Installer . | . . . . . . Robots Hacked . | . . . . . . Non-combat . | . . . . . . Combat . | . . . . . . Robot Hacks Applied . | . . . . . . Relay Couplers Released . | . . . . . . Fabnet Peak Effective % . | . . . . . . Robots Rewired . | . . . . . . Allies Hacked . | . . . . . . Hacks Repelled . | . . . . . . Allies | -11 -10 -10 -10 -9 -8 -------- Run | Jun Mat Min Exi Min Mat Total Allies 2 | . . 2 . . . Largest Group 2 | . . 2 . . . Highest-Rated Group 41 | . . 41 . . . Highest-Rated Ally 31 | . . 31 . . . Total Orders . | . . . . . . Ally Attacks 6 | . . 6 . . . Total Damage 123 | . . 123 . . . Kills 1 | . . 1 . . . Allies Corrupted . | . . . . . . Allies Melted . | . . . . . . Intel | -11 -10 -10 -10 -9 -8 ------- Run | Jun Mat Min Exi Min Mat Robot Analysis Total . | . . . . . . Derelict Logs Recovered 3 | . . 1 . 2 . Drone Launches . | . . . . . . Drone Recoveries . | . . . . . . Exploration | -11 -10 -10 -10 -9 -8 ------------- Run | Jun Mat Min Exi Min Mat Turns Passed 5140 | 168 1128 850 758 1374 862 Spaces Moved 3846 | 101 1281 564 557 906 437 Core 5 | 3 . 2 . . . Treads . | . . . . . . Legs 2602 | 98 167 437 557 906 437 Wheels . | . . . . . . Hover 1239 | . 1114 125 . . . Flight . | . . . . . . Fastest Speed 50 | 50 56 56 130 130 120 Average Speed 105 | 117 65 114 131 130 124 Slowest Speed 200 | 120 120 200 200 200 190 Overloaded Moves . | . . . . . . Propulsion Burnouts . | . . . . . . Robots Hopped . | . . . . . . Cave-ins Triggered . | . . . . . . Exploration Rate (%) 63 | 6 99 81 72 96 28 Regions Visited 5 Branch Regions 3 Pre-discovered Areas 2 | . . 1 1 . . Known Exits Taken 2 | . 1 1 . . . Unknown Exits Taken 3 | 1 . . 1 1 . Scrap Searched 4 | . . 2 . 2 . Spaces Dug 18 | . 9 . . . 9 Terrain Destroyed 172 | . 9 46 . 78 39 Melee . | . . . . . . Projectile . | . . . . . . AOE 172 | . 9 46 . 78 39 Terrain Rammed . | . . . . . . Walls Destroyed . | . . . . . . Machines Disabled . | . . . . . . Actions | -11 -10 -10 -10 -9 -8 --------- Run | Jun Mat Min Exi Min Mat Total 4573 | 130 1470 677 585 1035 676 Wait 144 | . 38 23 . 5 78 Move 3841 | 100 1280 563 556 905 437 Hop . | . . . . . . Pick Up 79 | 4 19 10 5 21 20 Fast Attach 38 | 10 7 2 7 3 9 Attach 20 | . 4 . 1 2 13 Detach 23 | 3 7 1 2 2 8 Swap 86 | . 26 14 3 13 30 Drop 97 | 3 24 13 9 20 28 Fire 238 | 10 64 51 . 62 51 Melee . | . . . . . . Ram . | . . . . . . Kick 2 | . 1 . . 1 . Crush . | . . . . . . Escape Stasis . | . . . . . . Rewire 3 | . . . 2 1 . Trap 2 | . . . . . 2 Miscellaneous . | . . . . . . Route ------- -11/Junkyard -10/Materials (discovered 5 exits: *Mat x3 / *Min x2) -10/Mines (discovered 2 exits: *Mat / *Exi) -10/Exiles (discovered 2 exits: [*Min x2]) -9/Mines (discovered 2 exits: *Mat x2) -8/Materials (discovered 1 exit: Fac) History --------- Turn | Location | Event 22 | -11/Junkyard | Discovered new exit (range 15) 169 | -11/Junkyard | Entered Materials 213 | -10/Materials | Discovered new exit (range 16) 312 | -10/Materials | Build established: Mutant 414 | -10/Materials | Discovered new exit (range 9) 615 | -10/Materials | Discovered new exit (range 11) 761 | -10/Materials | Discovered new exit (range 13) 837 | -10/Materials | Identified exit to Mines 839 | -10/Materials | Build established: Scavenger-Mutant 904 | -10/Materials | Identified exit to Materials 945 | -10/Materials | Discovered exit to Materials (range 15) 1297 | -10/Materials | Entered Mines 1318 | -10/Mines | Deemed a non-threat by the Exiles lab entrance 1318 | -10/Mines | Discovered new exit (range 5) 1320 | -10/Mines | Identified exit to Exiles 1559 | -10/Mines | Assembled infested the area 1579 | -10/Mines | Core integrity fell below 50% 1612 | -10/Mines | Destroyed 8 combat bots 1717 | -10/Mines | Learned location of Recycling (-7) 1819 | -10/Mines | Discovered exit to Materials (range 9) 1948 | -10/Mines | Build established: Mutant 2147 | -10/Mines | Entered Exiles 2168 | -10/Exiles | Discovered new exit (range 15) 2207 | -10/Exiles | Met 8R-AWN 2235 | -10/Exiles | Met EX-HEX 2310 | -10/Exiles | Met EX-BIN 2444 | -10/Exiles | Met EX-DEC 2457 | -10/Exiles | Learned location of Zion (-6) 2526 | -10/Exiles | Discovered new exit (range 10) 2905 | -10/Exiles | Entered Mines 3058 | -9/Mines | A weapon hastily lodged in a ceiling crevice suddenly fell to the ground 3111 | -9/Mines | Discovered new exit (range 12) 3161 | -9/Mines | Discovered new exit (range 9) 3538 | -9/Mines | Found a hidden stash of uninstalled traps 3755 | -9/Mines | Learned Materials terminal intel 3824 | -9/Mines | Build established: Derelict-Mutant 3868 | -9/Mines | Core integrity fell below 20% 4049 | -9/Mines | Learned 2 Materials zone layouts 4211 | -9/Mines | Build established: Scavenger-Mutant 4279 | -9/Mines | Entered Materials 4279 | -8/Materials | Evolved 4 slots: Propulsion x1, Utility x3 4280 | -8/Materials | Identified exit to Factory 4281 | -8/Materials | Loaded intel: 10 terminal locations 4886 | -8/Materials | Garrison activated, responded to threat 5141 | -8/Materials | Self-destructed Last Messages --------------- 04985_ Dropped Lgt. Nuclear Core. 04986_ Acquired Imp. Ion Engine. 05018_ Dropped EMP Trap. 05018_ T-07 Excavator is excavating. 05018_ Installed EMP Trap. 05044_ G-47 Trooper destroyed. 05069_ Acquired 55 matter. 05073_ Acquired Lgt. Nuclear Core. 05106_ Terminal disabled. 05113_ Y-45 Defender destroyed. 05116_ The unstable cave ceiling collapses. 05126_ Imp. Aluminum Leg destroyed. 05136_ Critical hit (Burn: +37). 05136_ Dropped Shock Rifle. 05137_ Aluminum Leg destroyed. 05138_ The unstable cave ceiling collapses. 05139_ Weight Redist. System destroyed. 05139_ Critical hit (Burn: +37). 05140_ Aluminum Leg destroyed. 05140_ Mni. Grenade Launcher destroyed. Map ----- +----------------------------------------------------+ | ???????????????????????????# % [ % +%= # " | | ???????????????????????????# ######## % # " | | ???????????????????????????# #??????#[ + | | ???????????????????????????# #??????# "" "" # | | ???????????????????????????# #??????# """"" # | | ???????????????????????????# #??????# """"" + | | ?????????????????????????### ###????# ## | | ?????????????????????????# ####?# ## | | ?????????????????????????# !############## | | ?????????????????????????# T !#?????? [ ?? | | ???????T?????????????????# !#?????? ??? | | ?????????????????????????# !#????? ???? # | | ?????????????????????????### ### !#?########??? # | | ???????????????????????????# #?# !##?# ####+# | | ???????????????????????????#k#?####??# | | ???????????????????????????# #????????# | | ???????????????????????????# ##########= | | ???????????????????????????# = * /% | | ???????????????????????????# ########## # !! | | ???????????????????????????#u#???????## ! !#????!! | | ???????????????????????????# #???### ## #?????? | | ????????????????????????####Y#### ######?????? | | ????????????????????????# # ###????????? | | ????????????????????????# ########+# | | ????????????????????????# = Y ^ | | ????????????????????????#@ Y | | ????????????????????????# Y | | ????????????????????????# ###+### | | ????????????????????????# ### #??? | | ????????????????????????# #?# #??^ | | ????????????????????????####### #### ^ #?# #??? | | ???????????????????????????# / ### #??? | | ???????????????????????????# # + #??? | | ???????????????????????????# # ### #??? | | ???????????????????????????######??# !#?######??? | | ????????????????????????????????#####+#####??????? | | ????????????????????????????????# [ #??????? | | ????????????????????????????????# """ """ #??????? | | ????????????????????????????????# """ """ #??????? | | ????????????????????????????????# """ """ #??????? | | ????????????????????????????????# #??????? | | ????????????????????????????????# *! [![ #??????? | | ????????????????????????????????# [ #??????? | | ????????????????????????????????# = ![ !#??????? | | ????????????????????????????????###########??????? | | | | | | | | | | | +----------------------------------------------------+ Best States ------------- Heat Dissipation 58 Energy Generation 18 Energy Capacity 265 Matter Stores 400 Matter Capacity 400 Sight Range 18 Robot Scan Range 15 Terrain Scan Range 16 Terrain Scan Density 10 Additional Mass Support 6 Armor Coverage 225 Resistance: KI 20 Resistance: TH 20 Resistance: EX 20 Resistance: EM 20 Resistance: I 20 Resistance: S 20 Resistance: P 20 Weapon Shielding 33 Evasion (%) 55 Offensive Hacking 10 Item Schematics ----------------- None Robot Schematics ------------------ None Fabricated ------------ Nothing Alien Tech Used ----------------- None Achievements -------------- None Challenges ------------ None Game ------ Seed FocalMiniKit Manual? 0 Play Time 02:17:22 Cumulative 257.7 hours Start 2023.12.03 @ 19:05:14 End 2023.12.03 @ 21:34:02 Sessions 1 Manual Loads 0 Difficulty Adventurer Special Mode None Game No. 91 Rogue 80 Adventurer 11 Explorer 0 Win Type - Total 0 Types 0/0/0/0/0/0/0/0/0 Lore% 42 Gallery% 44 Achievement% 61 Wizard Run 0 Options --------- ASCII 0 Keyboard 1 Movement Vi Keybinds 0 Fullscreen 1 Font 18/SmallcapsGlow Map View 76x50 Tactical HUD 1 Map Filters NONE Filters NONE Steam 1 RUN: 277f2fec-b3fa-4a61-842c-55846341156f